fUST/lending_fUST_20241013
["ID","MTS","AMOUNT","RATE_DAILY","PERIOD"]
[340187150,1728795041923,-3000.0,0.00032838,90]
[340187151,1728795041933,-3000.0,0.00032838,90]
[340187152,1728795041943,-3000.0,0.00032838,90]
[340187153,1728795041954,-3000.0,0.00032838,90]
[340187154,1728795041965,-1176.399964,0.00032838,90]
[340187155,1728795041978,-179.338889,0.00032838,7]
[340187156,1728795041987,-151.0,0.00032838,7]
[340187157,1728795041997,-161.674257,0.00032838,7]
[340187158,1728795042006,-161.674257,0.00032838,7]
[340187159,1728795042016,-311.610066,0.00032838,7]
[340187160,1728795042025,-311.610066,0.00032838,7]
[340187161,1728795042035,-1000.0,0.00032876,2]
[340187162,1728795042044,-1000.0,0.00032876,2]
[340187163,1728795042053,-1000.0,0.00032876,2]
[340187164,1728795042063,-1000.0,0.00032876,2]
[340187165,1728795042072,-1000.0,0.00032876,2]
[340187166,1728795042081,-653.34607827,0.00032876,2]
[340187167,1728795042091,-710.66635367,0.00032877,2]
[340187168,1728795042100,-188.534966,0.00032877,120]
[340187169,1728795042109,-8122.088,0.00032877,60]
[340187170,1728795042119,-150.0,0.00032877,5]
[340187171,1728795042128,-500.0,0.00032877,7]
[340187172,1728795042137,-500.0,0.00032877,7]
[340187173,1728795042146,-500.0,0.00032877,7]
[340187174,1728795042155,-500.0,0.00032877,7]
[340187175,1728795042169,-500.0,0.00032877,7]
[340187176,1728795042178,-500.0,0.00032877,7]
[340187177,1728795042187,-500.0,0.00032877,7]
[340187178,1728795042196,-500.0,0.00032877,7]
[340187179,1728795042207,-171.85324527,0.00032877,7]
[340187180,1728795042216,-500.0,0.00032877,7]
[340187181,1728795042225,-500.0,0.00032877,7]
[340187182,1728795042234,-500.0,0.00032877,7]
[340187183,1728795042246,-500.0,0.00032877,7]
[340187184,1728795042256,-500.0,0.00032877,7]
[340187185,1728795042265,-500.0,0.00032877,7]
[340187186,1728795042275,-500.0,0.00032877,7]
[340187187,1728795042284,-500.0,0.00032877,7]
[340187188,1728795042293,-500.0,0.00032877,7]
[340187189,1728795042302,-500.0,0.00032877,7]
[340187190,1728795042311,-500.0,0.00032877,7]
[340187191,1728795042320,-500.0,0.00032877,7]
[340187192,1728795042330,-500.0,0.00032877,7]
[340187193,1728795042338,-500.0,0.00032877,7]
[340187194,1728795042348,-500.0,0.00032877,7]
[340187195,1728795042356,-500.0,0.00032877,7]
[340187196,1728795042366,-500.0,0.00032877,7]
[340187197,1728795042375,-500.0,0.00032877,7]
[340187198,1728795042384,-500.0,0.00032877,7]
[340187199,1728795042393,-500.0,0.00032973,5]
[340187200,1728795042403,-500.0,0.00032973,5]
[340187201,1728795042411,-151.0,0.00032973,14]
[340187202,1728795042422,-151.0,0.00032973,14]
[340187203,1728795042432,-151.0,0.00032973,14]
[340187204,1728795042504,-151.0,0.0003298,14]
[340187205,1728795042513,-151.0,0.0003298,14]
[340187206,1728795042522,-153.24737,0.0003298,14]
[340187207,1728795042532,-151.0,0.0003298,14]
[340187208,1728795042542,-151.0,0.0003298,14]
[340187209,1728795042551,-151.0,0.0003298,14]
[340187210,1728795042560,-151.0,0.0003298,14]
[340187211,1728795042569,-151.0,0.0003298,14]
[340187212,1728795042578,-151.0,0.0003298,14]
[340187213,1728795042588,-151.0,0.0003298,14]
[340187214,1728795042597,-322.672414,0.0003298,14]
[340187215,1728795042606,-151.0,0.0003298,14]
[340187216,1728795042615,-322.672414,0.0003298,14]
[340187217,1728795042625,-797.555005,0.0003298,14]
[340187218,1728795042635,-797.555005,0.0003298,14]
[340187219,1728795042644,-151.0,0.0003299,14]
[340187220,1728795042653,-151.0,0.0003299,14]
[340187221,1728795042662,-151.0,0.0003299,14]
[340187222,1728795042672,-151.0,0.0003299,2]
[340187223,1728795042682,-151.0,0.0003299,14]
[340187224,1728795042691,-151.0,0.0003299,14]
[340187225,1728795042701,-151.0,0.0003299,14]
[340187226,1728795042710,-2236.795518,0.0003299,14]
[340187227,1728795042719,-155.408013,0.0003299,14]
[340187228,1728795042728,-2236.795518,0.0003299,14]
[340187229,1728795042737,-160.444914,0.0003299,14]
[340187230,1728795042746,-151.0,0.0003299,14]
[340187231,1728795042755,-151.0,0.0003299,14]
[340187232,1728795042764,-573.899463,0.0003299,2]
[340187233,1728795042774,-573.899463,0.0003299,2]
[340187234,1728795042783,-199.307394,0.0003299,14]
[340187236,1728795042793,-225.202619,0.0003299,14]
[340187237,1728795042802,-225.202619,0.0003299,14]
[340187238,1728795042811,-151.0,0.0003299,14]
[340187239,1728795042821,-151.0,0.0003299,14]
[340187240,1728795042831,-16725.65591927,0.00033,2]
[340187241,1728795042840,-293322.10964543,0.00033,2]
[340187242,1728795042850,-278.43614038,0.00033,30]
[340187243,1728795042859,-151.0,0.00033,7]
[340187244,1728795042868,-151.0,0.00033,14]
[340187245,1728795042878,-151.0,0.00033,14]
[340187246,1728795042888,-151.0,0.00033,14]
[340187247,1728795042897,-151.0,0.00033,14]
[340187248,1728795042906,-162.303923,0.00033,14]
[340187249,1728795042915,-151.0,0.00033,14]
[340187250,1728795042924,-163.940852,0.00033,2]
[340187251,1728795042934,-151.0,0.00033,14]
[340187252,1728795042945,-151.0,0.00033,14]
[340187253,1728795042954,-151.0,0.00033,14]
[340187254,1728795042964,-2236.795518,0.00033,14]
[340187255,1728795042974,-2236.795518,0.00033,14]
[340187256,1728795042985,-174.173072,0.00033,14]
[340187257,1728795042995,-151.0,0.00033,14]
[340187258,1728795043004,-151.0,0.00033,14]
[340187259,1728795043013,-573.899463,0.00033,2]
[340187260,1728795043022,-573.899463,0.00033,2]
[340187261,1728795043033,-1456.854609,0.00033,14]
[340187262,1728795043043,-225.202619,0.00033,14]
[340187263,1728795043053,-225.202619,0.00033,14]
[340187264,1728795043063,-367.884985,0.00033,14]
[340187265,1728795043073,-367.884985,0.00033,14]
[340187266,1728795043084,-151.0,0.00033,14]
[340187267,1728795043094,-151.0,0.00033,14]
[340187268,1728795043104,-151.0,0.00033,14]
[340187269,1728795043114,-230.51536,0.00033,14]
[340187271,1728795043124,-151.0,0.00033,14]
[340187272,1728795043133,-151.0,0.00033,14]
[340187273,1728795043142,-151.0,0.00033,14]
[340187274,1728795043152,-151.0,0.00033,14]
[340187275,1728795043163,-151.0,0.00033,14]
[340187276,1728795043173,-151.0,0.00033,14]
[340187277,1728795043183,-151.0,0.00033,14]
[340187278,1728795043194,-151.0,0.00033,14]
[340187279,1728795043204,-151.0,0.00033,14]
[340187280,1728795043214,-151.0,0.00033,14]
[340187281,1728795043226,-151.0,0.00033,14]
[340187282,1728795043235,-151.0,0.00033,14]
[340187283,1728795043244,-151.0,0.00033,14]
[340187284,1728795043256,-151.0,0.00033,14]
[340187285,1728795043268,-151.0,0.00033,14]
[340187286,1728795043279,-158.402721,0.00033,14]
[340187287,1728795043289,-151.0,0.00033,14]
[340187288,1728795043298,-322.672414,0.00033,14]
[340187289,1728795043307,-151.0,0.00033,14]
[340187290,1728795043316,-322.672414,0.00033,14]
[340187291,1728795043325,-151.0,0.00033,14]
[340187292,1728795043334,-151.0,0.00033,14]
[340187293,1728795043343,-797.555005,0.00033,14]
[340187294,1728795043353,-797.555005,0.00033,14]
[340187295,1728795043363,-179.338889,0.00033,14]
[340187296,1728795043372,-179.338889,0.00033,14]
[340187297,1728795043382,-151.0,0.00033,14]
[340187298,1728795043391,-180.0,0.00033,2]
[340187300,1728795043400,-180.0,0.00033,2]
[340187302,1728795043410,-472.325775,0.00033,14]
[340187303,1728795043418,-288.628411,0.00033,14]
[340187304,1728795043429,-472.325775,0.00033,14]
[340187305,1728795043438,-288.628411,0.00033,14]
[340187306,1728795043447,-151.0,0.00033,14]
[340187307,1728795043456,-193.039352,0.00033,14]
[340187308,1728795043465,-193.039352,0.00033,14]
[340187309,1728795043474,-839.542777,0.00033,14]
[340187310,1728795043483,-839.542777,0.00033,14]
[340187311,1728795043492,-151.0,0.00033,14]
[340187312,1728795043501,-161.674257,0.00033,14]
[340187313,1728795043510,-161.674257,0.00033,14]
[340187314,1728795043519,-311.610066,0.00033,14]
[340187315,1728795043528,-311.610066,0.00033,14]
[340187316,1728795043537,-1115.42708334,0.00033045,120]
[340187317,1728795043546,-500.0,0.00033213,10]
[340187318,1728795043555,-500.0,0.00033213,10]
[340187319,1728795043565,-500.0,0.00033213,10]
[340187320,1728795043576,-500.0,0.00033213,10]
[340187321,1728795043586,-500.0,0.00033213,10]
[340187322,1728795043595,-500.0,0.00033213,10]
[340187323,1728795043605,-119.66231886,0.00033213,10]
[340187324,1728795043637,-86.24568438,0.00033213,10]
[340187343,1728795603998,500.0,0.0001,2]
[340187344,1728795699283,150.0,0.0001,2]
[340187345,1728795699439,150.0,0.00011,2]
[340187346,1728795700087,150.0,0.00012,2]
[340187347,1728795700412,156.15321,0.00013,2]
[340187349,1728795749429,380.0,0.00022,2]
[340187350,1728795749782,380.0,0.00022192,2]
[340187351,1728795750122,380.0,0.00023014,2]
[340187353,1728795850880,237.0,0.00022,2]
[340187354,1728795851225,237.0,0.00022192,2]
[340187355,1728795851582,237.0,0.00023014,2]
[340187358,1728795946972,201.0,0.00022,2]
[340187359,1728795950147,-2244.34009811,0.00025051,2]
[340187360,1728795950492,169.0,0.00022,2]
[340187361,1728795950849,169.0,0.00022192,2]
[340187362,1728795951292,169.0,0.00023014,2]
[340187363,1728796037109,-168.77943399,0.00024164,2]
[340187364,1728796038144,-6.22056601,0.00024164,2]
[340187365,1728796038165,-159.9763914,0.00024541,2]
[340187366,1728796048112,-1181.22905246,0.00024541,2]
[340187367,1728796147115,-1207.361439,0.00024514,2]
[340187368,1728796147137,-154.96018206,0.00024541,2]
[340187369,1728796150117,-1503.83437408,0.00024541,2]
[340187370,1728796150140,-169.0,0.00025,2]
[340187371,1728796150163,-150.0,0.00025025,2]
[340187372,1728796150186,-300.0,0.0002505,2]
[340187373,1728796150208,-300.0,0.0002505,2]
[340187374,1728796150231,-9249.92208999,0.00025051,2]
[340187375,1728796150253,-250.0,0.00025112,2]
[340187376,1728796150276,-250.0,0.00025181,2]
[340187377,1728796150297,-1144.708068,0.00025191,2]
[340187378,1728796150318,-1207.361439,0.00025199,2]
[340187379,1728796150338,-250.0,0.0002525,2]
[340187380,1728796150360,-250.0,0.00025318,2]
[340187381,1728796150380,-250.0,0.00025387,2]
[340187382,1728796156115,-250.0,0.00025456,2]
[340187383,1728796156140,-250.0,0.00025525,2]
[340187384,1728796156161,-250.0,0.00025594,2]
[340187385,1728796156185,-250.0,0.00025663,2]
[340187386,1728796156208,-250.0,0.00025732,2]
[340187387,1728796156231,-162.29126026,0.00025747,2]
[340187388,1728796159171,-1329.31899383,0.00025747,2]
[340187395,1728796180709,166.666666,0.00024533,2]
[340187396,1728796180928,166.666666,0.00025202,2]
[340187519,1728796241187,-1556.19212686,0.00025747,2]
[340187520,1728796241197,-250.0,0.00025801,2]
[340187522,1728796241207,-250.0,0.00025869,2]
[340187523,1728796241218,-166.666666,0.00025871,2]
[340187524,1728796241228,-1207.361439,0.00025884,2]
[340187525,1728796241238,-169.0,0.0002589,2]
[340187527,1728796241249,-250.0,0.00025938,2]
[340187528,1728796241260,-300.0,0.00025989,2]
[340187529,1728796241270,-300.0,0.00025989,2]
[340187530,1728796241281,-211.30293286,0.00025991,2]
[340187531,1728796241291,-24900.0,0.00025991,2]
[340187532,1728796241301,-250.0,0.00026007,2]
[340187533,1728796241311,-250.0,0.00026076,2]
[340187534,1728796241320,-250.0,0.00026126,2]
[340187535,1728796241330,-250.0,0.00026145,2]
[340187536,1728796241339,-250.0,0.00026214,2]
[340187537,1728796241348,-593.73995489,0.0002628,2]
[340187538,1728796241357,-170.133522,0.00026282,2]
[340187539,1728796241368,-250.0,0.00026283,2]
[340187540,1728796241379,-250.0,0.00026352,2]
[340187541,1728796241390,-2582.22227507,0.0002638,2]
[340187542,1728796241399,-250.0,0.0002642,2]
[340187543,1728796241409,-166.666666,0.0002654,2]
[340187544,1728796241418,-166.666666,0.00027208,2]
[340187545,1728796241428,-407.779152,0.00027397,2]
[340187546,1728796241437,-238.63,0.00027702,2]
[340187548,1728796241447,-166.666666,0.00027877,2]
[340187549,1728796241456,-420.0,0.00028126,2]
[340187550,1728796241466,-157.0,0.0002817,2]
[340187551,1728796241475,-500.0,0.00028322,5]
[340187552,1728796241485,-500.0,0.00028322,5]
[340187553,1728796241494,-420.0,0.00028588,2]
[340187554,1728796241503,-391.56563703,0.00028722,5]
[340187555,1728796241512,-500.40186185,0.00028817,5]
[340187556,1728796241522,-500.0,0.00028999,2]
[340187557,1728796241532,-516.6496138,0.00028999,2]
[340187558,1728796241541,-500.0,0.00028999,2]
[340187559,1728796241550,-557.60373534,0.00028999,2]
[340187560,1728796241559,-289.86506516,0.00028999,2]
[340187561,1728796241568,-500.0,0.00029,2]
[340187562,1728796241577,-500.0,0.00029,2]
[340187563,1728796241587,-500.0,0.00029,2]
[340187564,1728796241599,-913.75431562,0.00029,2]
[340187565,1728796241610,-500.0,0.00029,2]
[340187566,1728796241622,-500.0,0.00029,2]
[340187567,1728796241632,-500.0,0.00029,2]
[340187568,1728796241643,-500.0,0.00029,2]
[340187569,1728796241653,-500.0,0.00029,2]
[340187570,1728796241663,-500.0,0.00029,2]
[340187571,1728796241672,-500.0,0.00029,2]
[340187572,1728796241683,-500.0,0.00029,2]
[340187573,1728796241693,-500.0,0.00029,2]
[340187574,1728796241702,-500.0,0.00029,2]
[340187575,1728796241711,-500.0,0.00029,2]
[340187576,1728796241720,-500.0,0.00029,2]
[340187577,1728796241730,-500.0,0.00029,2]
[340187578,1728796241739,-500.0,0.00029,2]
[340187579,1728796241748,-500.0,0.00029,2]
[340187580,1728796241757,-500.0,0.00029,2]
[340187581,1728796241767,-500.0,0.00029,2]
[340187582,1728796241776,-500.0,0.00029,2]
[340187583,1728796241786,-500.0,0.00029,2]
[340187584,1728796241797,-500.0,0.00029,2]
[340187585,1728796241809,-500.0,0.00029,2]
[340187586,1728796241882,-500.0,0.00029,2]
[340187587,1728796241896,-500.0,0.00029,2]
[340187588,1728796241907,-500.0,0.00029,2]
[340187589,1728796241917,-500.0,0.00029,2]
[340187590,1728796241927,-700.0,0.00029,2]
[340187591,1728796241940,-626.15124472,0.00029383,5]
[340187592,1728796241951,-500.0,0.00029383,5]
[340187593,1728796241962,-502.31463224,0.00029383,5]
[340187594,1728796241975,-500.0,0.00029383,5]
[340187595,1728796241985,-500.0,0.0002946,5]
[340187596,1728796241995,-500.0,0.0002946,5]
[340187597,1728796242004,-500.0,0.000296,5]
[340187598,1728796242015,-500.0,0.000296,5]
[340187599,1728796242029,-501.63086104,0.000296,5]
[340187600,1728796242040,-388.01,0.00029719,3]
[340187601,1728796242052,-194.01,0.00029719,3]
[340187602,1728796242063,-582.05,0.00029719,3]
[340187603,1728796242072,-1297.96,0.00029719,10]
[340187604,1728796242082,-259.99436126,0.00029728,2]
[340187605,1728796242092,-596.86303267,0.00029728,2]
[340187606,1728796242104,-500.0,0.00029728,2]
[340187607,1728796242115,-320.97183279,0.00029728,2]
[340187608,1728796242126,-442.79793694,0.00029728,2]
[340187610,1728796242138,-445.83328783,0.00029728,2]
[340187611,1728796242147,-55216.8827071,0.00029729,4]
[340187612,1728796242159,-49511.6898032,0.00029729,4]
[340187613,1728796242170,-500.30102556,0.00029973,5]
[340187614,1728796242182,-245.0,0.0003,2]
[340187615,1728796242192,-151.0,0.0003009,7]
[340187616,1728796242203,-587.0,0.00030439,2]
[340187617,1728796242214,-151.0,0.0003055,7]
[340187618,1728796242224,-258.03870099,0.00030579,5]
[340187619,1728796242235,-500.0,0.0003083,5]
[340187620,1728796242244,-1000.0,0.0003097,5]
[340187621,1728796242253,-1000.0,0.0003097,5]
[340187622,1728796242262,-151.0,0.00031,7]
[340187623,1728796242272,-776.02,0.00031089,3]
[340187624,1728796242281,-388.02,0.00031089,3]
[340187625,1728796242291,-35634.41217365,0.00031302,4]
[340187666,1728796243487,-30.00412073,0.00031302,4]
[340187683,1728796246416,-819.09207924,0.00031302,4]
[340187691,1728796246489,-7068.28437684,0.00031302,4]
[340187694,1728796246513,-16.23131274,0.00031302,4]
[340187695,1728796246525,-11648.8586439,0.00031302,4]
[340187696,1728796246535,-49511.6898032,0.00031302,4]
[340187697,1728796246544,-500.0,0.00031373,5]
[340187698,1728796246554,-500.0,0.00031373,5]
[340187699,1728796246563,-500.0,0.00031373,5]
[340187700,1728796246573,-228.72861046,0.00031373,5]
[340187701,1728796246583,-500.0,0.00031373,5]
[340187702,1728796246594,-500.0,0.00031373,5]
[340187703,1728796246604,-587.0,0.00031447,2]
[340187704,1728796246615,-500.0,0.00032562,5]
[340187705,1728796246626,-363.89488632,0.00032562,5]
[340187706,1728796246637,-169.0,0.00032622,2]
[340187707,1728796246647,-1000.0,0.00032742,5]
[340187708,1728796246656,-887.19669118,0.00032742,5]
[340187709,1728796246666,-1000.0,0.00032742,5]
[340187710,1728796246677,-1000.0,0.00032742,5]
[340187711,1728796246687,-687.36793934,0.00032877,2]
[340187712,1728796246699,-188.534966,0.00032877,120]
[340187713,1728796246709,-500.0,0.00032877,7]
[340187714,1728796246719,-500.0,0.00032877,7]
[340187715,1728796246729,-500.0,0.00032877,7]
[340187716,1728796246738,-367.18532452,0.00032877,7]
[340187717,1728796246748,-823.0,0.00032942,2]
[340187718,1728796246760,-150.0,0.00032973,5]
[340187719,1728796246770,-150.0,0.00032973,5]
[340187720,1728796246780,-1500.0,0.00032973,5]
[340187721,1728796246790,-1500.0,0.00032973,5]
[340187722,1728796246866,-55216.8827071,0.0003299,5]
[340187723,1728796246876,-49511.6898032,0.0003299,5]
[340187724,1728796246887,-1000.0,0.00032999,7]
[340187725,1728796246897,-1115.42708334,0.00032999,120]
[340187726,1728796246908,-151.0,0.00033,14]
[340187727,1728796246919,-13850.04163858,0.00033,2]
[340187732,1728796308032,714.74284403,0.0002,10]
[340187733,1728796308055,1558.91254764,0.0002,10]
[340187734,1728796308078,1387.43914502,0.0002,10]
[340187735,1728796308100,1312.10709525,0.0002,10]
[340187736,1728796308123,1220.55766381,0.0002,10]
[340187737,1728796308145,1337.29879692,0.0002,10]
[340187738,1728796308167,914.66666536,0.0002,10]
[340187739,1728796308192,1554.27524197,0.0002,10]
[340187740,1728796328126,10000.0,0.00024,2]
[340187742,1728796348088,10000.0,0.0002,30]
[340187743,1728796393014,10000.0,0.0002,60]
[340187744,1728796431753,10000.0,0.0002,60]
[340187745,1728796451275,606.0,0.00024,2]
[340187749,1728797140141,-246.85241588,0.00027397,2]
[340187750,1728797243104,-1373.56673796,0.00026716,2]
[340187751,1728797244110,-316.42810252,0.00026716,2]
[340187753,1728797321702,1316.97510421,0.0002,2]
[340187754,1728797322746,18803.46474308,0.0001,2]
[340187755,1728797351111,-1064.956532,0.00026631,2]
[340187756,1728797351133,-599.34268752,0.00026716,2]
[340187758,1728797361157,-252.31,0.00027,2]
[340187759,1728797361179,-3000.0,0.00027092,2]
[340187760,1728797361199,-201.58956269,0.00027297,2]
[340187761,1728797361221,-161.45720212,0.00027397,2]
[340187762,1728797361243,-300.0,0.000274,2]
[340187763,1728797361266,-2289.337528,0.00027401,2]
[340187764,1728797361286,-107.87919119,0.000275,2]
[340187765,1728797362136,-4450.82008345,0.000275,2]
[340187766,1728797383801,1096.2106914,0.00026729,2]
[340187778,1728797413409,173.2407369,0.00026705,2]
[340187805,1728797432668,-300.0,0.00027989,2]
[340187806,1728797432679,-300.0,0.00027989,2]
[340187807,1728797432783,-283.95148482,0.0002799,2]
[340187808,1728797432799,-4383.52851267,0.0002799,2]
[340187809,1728797432811,-27347.09004645,0.0002799,2]
[340187810,1728797432827,-69.78118048,0.0002799,2]
[340187811,1728797432836,-1158.90904515,0.0002799,7]
[340187812,1728797432845,-2289.337528,0.00028086,2]
[340187813,1728797432854,-157.0,0.0002817,2]
[340187814,1728797432864,-150.0,0.00028373,2]
[340187815,1728797432874,-166.666666,0.00028506,2]
[340187816,1728797432883,-168.542845,0.00028762,2]
[340187817,1728797432893,-1380.02567639,0.00028773,2]
[340187821,1728797438817,-27.12895906,0.00028772,2]
[340187828,1728797439120,-139.08865602,0.00028772,2]
[340187830,1728797439129,-500.0,0.00028772,2]
[340187831,1728797439138,-500.0,0.00028772,2]
[340187832,1728797439148,-500.0,0.00028772,2]
[340187833,1728797439158,-200.46373792,0.00028772,2]
[340187834,1728797439169,-1675.81600613,0.00028773,2]
[340187840,1728797440602,-8356.47482672,0.00028773,2]
[340187841,1728797440612,-500.0,0.00028811,5]
[340187842,1728797440622,-500.0,0.00028811,2]
[340187843,1728797440632,-24900.0,0.00028828,2]
[340187844,1728797440641,-1562.25780078,0.00028887,2]
[340187845,1728797440651,-568.45743712,0.000289,2]
[340187846,1728797440660,-998.00399202,0.00028999,2]
[340187847,1728797440669,-500.0,0.00029,2]
[340187848,1728797440678,-500.0,0.00029,2]
[340187849,1728797440688,-500.0,0.00029,2]
[340187850,1728797440697,-500.0,0.00029,2]
[340187851,1728797440707,-500.0,0.00029,2]
[340187852,1728797440716,-500.0,0.00029,2]
[340187853,1728797440725,-500.0,0.00029,2]
[340187854,1728797440735,-500.0,0.00029,2]
[340187855,1728797440744,-500.0,0.00029,2]
[340187856,1728797440755,-500.0,0.00029,2]
[340187857,1728797440765,-500.0,0.00029,2]
[340187858,1728797440775,-500.0,0.00029,2]
[340187859,1728797440784,-500.0,0.00029,2]
[340187860,1728797440794,-500.0,0.00029,2]
[340187861,1728797440804,-250.0,0.00029176,2]
[340187862,1728797440814,-250.0,0.00029256,2]
[340187863,1728797440826,-166.666666,0.00029283,2]
[340187864,1728797440836,-250.0,0.00029336,2]
[340187865,1728797440848,-250.0,0.00029416,2]
[340187866,1728797440859,-168.5713246,0.00029417,2]
[340187867,1728797440868,-500.30102556,0.00029444,5]
[340187868,1728797440961,-250.0,0.00029496,2]
[340187869,1728797440970,-1174.21339291,0.000295,120]
[340187870,1728797440980,-250.0,0.00029576,2]
[340187871,1728797440990,-250.0,0.00029656,2]
[340187872,1728797440999,-250.0,0.00029736,2]
[340187873,1728797441008,-250.0,0.00029816,2]
[340187874,1728797441018,-238.62,0.00029879,2]
[340187875,1728797441027,-250.0,0.00029896,2]
[340187876,1728797441037,-258.03870099,0.00029925,5]
[340187877,1728797441046,-250.0,0.00029976,2]
[340187878,1728797441055,-194.01,0.0002998,3]
[340187879,1728797441064,-582.05,0.0002998,3]
[340187880,1728797441074,-388.01,0.0002999,3]
[340187881,1728797441083,-431.0,0.0003,2]
[340187882,1728797441093,-159.0,0.0003,2]
[340187883,1728797441103,-875.72904696,0.0003,15]
[340187884,1728797441112,-4748.82198345,0.0003,10]
[340187885,1728797441122,-1015.49106109,0.0003,7]
[340187886,1728797441132,-166.49162359,0.0003,2]
[340187887,1728797441141,-215.98134358,0.0003,2]
[340187888,1728797441151,-245.0,0.0003,2]
[340187889,1728797441161,-250.0,0.00030056,2]
[340187890,1728797441171,-166.666666,0.0003006,2]
[340187891,1728797441180,-1590.54,0.00030106,10]
[340187892,1728797441190,-250.0,0.00030136,2]
[340187893,1728797441199,-500.0,0.00030181,5]
[340187894,1728797441208,-500.0,0.00030181,2]
[340187895,1728797441219,-250.0,0.00030216,2]
[340187896,1728797441228,-420.0,0.00030228,2]
[340187897,1728797441238,-250.0,0.00030296,2]
[340187898,1728797441247,-250.0,0.00030376,2]
[340187899,1728797441256,-431.0,0.00030411,2]
[340187900,1728797441266,-159.0,0.00030411,2]
[340187901,1728797441275,-250.0,0.00030456,2]
[340187902,1728797441284,-500.0184306,0.00030483,5]
[340187903,1728797441294,-250.0,0.00030536,2]
[340187904,1728797441303,-250.0,0.00030616,2]
[340187905,1728797441312,-186.9983685,0.0003065,2]
[340187906,1728797441321,-431.0,0.00030685,2]
[340187907,1728797441331,-250.0,0.00030696,2]
[340187908,1728797441340,-162.601754,0.00030732,2]
[340187909,1728797441350,-420.0,0.00030788,2]
[340187910,1728797441359,-166.666666,0.00030838,2]
[340187911,1728797441369,-431.0,0.00030959,2]
[340187912,1728797441378,-166.109065,0.00031025,2]
[340187913,1728797441387,-166.109065,0.0003118,2]
[340187914,1728797441397,-431.0,0.00031233,2]
[340187915,1728797441407,-388.02,0.0003135,3]
[340187916,1728797441416,-776.02,0.0003136,3]
[340187917,1728797441425,-166.666666,0.00031615,2]
[340187918,1728797441435,-431.0,0.00031644,2]
[340187919,1728797441444,-159.0,0.00031644,2]
[340187920,1728797441454,-500.0,0.00032201,2]
[340187921,1728797441464,-259.99436126,0.00032201,2]
[340187922,1728797441474,-442.79793694,0.00032201,2]
[340187923,1728797441483,-500.0,0.00032201,2]
[340187924,1728797441493,-320.97183279,0.00032201,2]
[340187925,1728797441502,-157.02382334,0.00032201,2]
[340187926,1728797441512,-445.83328783,0.00032201,2]
[340187927,1728797441522,-11412.31650919,0.00032202,2]
[340187928,1728797441532,-166.666666,0.00032392,2]
[340187929,1728797441541,-501.63086104,0.00032409,5]
[340187930,1728797441550,-500.0,0.00032409,5]
[340187931,1728797441560,-500.0,0.00032409,5]
[340187932,1728797441569,-500.0,0.00032409,5]
[340187933,1728797441579,-587.0,0.00032647,2]
[340187934,1728797441588,-361.8968005,0.0003274,2]